Cogmind - Beta 13 @@@ ROGUE MODE // 2024.03.03 @ 17:05:34 Player: Coronach Result: Self-destructed Performance ------------- Evolutions (2) 1000 Regions Visited (5) 1000 Robots Destroyed (33) 165 Value Destroyed (814) 814 Prototype IDs (25) 500 Alien Tech Used (0) 0 Bonus (333) 333 TOTAL SCORE: 3812 Bonus ------- Follower Combat Kills 33 Aligned with FarCom 300 Cogmind --------- Core Integrity 438/550 Matter 300/300 Energy 265/265 System Corruption 0% Temperature Cool (0) Movement Treading (145) Location -8/Materials Parts ------- > --- POWER (1) -------- Improved Ion Engine > --- PROPULSION (3) --- Advanced Treads Advanced Treads Advanced Treads > --- UTILITY (5) ------ High-capacity Storage Unit Trap Scanner Improved Utility Shielding Light Armor Plating System Shield > --- WEAPON (2) ------- Heavy Assault Rifle Katana > --- INVENTORY (20) --- Light Ion Engine Light Treads Advanced Treads Compact Wheel Compact Wheel Improved Heat Sink Large Storage Unit Large Battery (200) Large Battery (200) Large Matter Pod (150) Large Matter Pod (150) Signal Interpreter Advanced Targeting Computer Heavy Armor Plating Trap Reconfigurator Light Assault Rifle Light Assault Rifle Assault Cannon Missile Launcher Peak State ------------ > --- POWER ------------ Light Nuclear Core > --- PROPULSION ------- Advanced Treads Advanced Treads Advanced Treads > --- UTILITY ---------- High-capacity Storage Unit Trap Scanner Trap Scanner Visual Processing Unit Trap Reconfigurator > --- WEAPON ----------- Beam Cannon Assault Cannon > --- INVENTORY -------- Light Ion Engine Improved Ion Engine Compact Wheel Compact Wheel Large Storage Unit Large Battery Large Battery Large Matter Pod Large Matter Pod Large Matter Pod Signal Interpreter Advanced Targeting Computer Reaction Control System Improved Utility Shielding Improved EM Shotgun Beam Cannon Assault Rifle Light Assault Rifle Light Assault Rifle Missile Launcher [Rating: 37] Favorites ----------- Power Ion Engine Engine Ion Engine Power Core Light Nuclear Core Propulsion Light Treads Treads Light Treads Leg Aluminum Leg Wheel Compact Wheel Utility Trap Scanner Device Trap Scanner Storage High-capacity Storage Unit Processor Visual Processing Unit Hackware System Shield Protection Improved Utility Shielding Weapon Assault Rifle Energy Gun Improved EM Shotgun Energy Cannon Beam Cannon Ballistic Gun Assault Rifle Ballistic Cannon Assault Cannon Launcher Grenade Launcher Slashing Weapon Katana Build | -11 -10 -10 -10 -9 -8 ------- Run | Yrd Mat Min Exi Min Mat Slots Evolved 4 | . . . . . 4 Power . | . . . . . . Propulsion 1 | . . . . . 1 Utility 3 | . . . . . 3 Weapon . | . . . . . . Parts Attached 47 | 5 3 1 3 1 34 Power 4 | . . . . . 4 Engine 3 | . . . . . 3 Core 1 | . . . . . 1 Reactor . | . . . . . . Propulsion 8 | 2 2 . . 1 3 Treads 7 | 2 2 . . . 3 Leg . | . . . . . . Wheel 1 | . . . . 1 . Hover . | . . . . . . Flight . | . . . . . . Utility 21 | 3 . 1 1 . 16 Device 10 | 3 . . . . 7 Storage 6 | . . 1 1 . 4 Processor 1 | . . . . . 1 Hackware 1 | . . . . . 1 Protection 3 | . . . . . 3 Artifact . | . . . . . . Weapon 14 | . 1 . 2 . 11 Energy Gun 1 | . . . . . 1 Energy Cannon 1 | . . . . . 1 Ballistic Gun 7 | . 1 . 1 . 5 Ballistic Cannon 1 | . . . . . 1 Launcher 1 | . . . 1 . . Special Weapon . | . . . . . . Impact Weapon . | . . . . . . Slashing Weapon 3 | . . . . . 3 Piercing Weapon . | . . . . . . Special Melee Weapon . | . . . . . . Unidentified Prototypes 2 | . . . . . 2 Parts Lost 5 | . . 3 . 1 1 Power 1 | . . . . . 1 Propulsion 1 | . . . . 1 . Utility 2 | . . 2 . . . Weapon 1 | . . 1 . . . Highest Loss Streak 2 | . . 2 . 1 1 To Critical Strikes . | . . . . . . Average Slot Usage (%) 93 | . 100 98 75 97 99 Engine 10 | . 14 14 14 14 4 Core 1 | . . . . . 3 Treads 27 | . 28 28 28 14 26 Device 16 | . 28 21 . . 19 Storage 9 | . . 5 15 28 10 Processor 1 | . . . . . 4 Hackware 1 | . . . . . 4 Protection 2 | . . . . . 6 Ballistic Gun 16 | . 28 27 16 14 6 Ballistic Cannon 2 | . . . . . 7 Naked Turns . | . . . . . . Heaviest Build 62 | 14 11 30 33 33 62 Greatest Support 66 | 40 40 40 40 16 66 Greatest Overweight (x) 2 | . . . . 2 2 Average Overweight (x) . | . . . . 2 . Largest Inventory Capacity 20 | 8 5 15 15 15 20 Average Capacity 13 | 6 5 9 15 15 19 Most Carried 20 | 6 5 8 15 12 20 Average Carried 11 | 4 4 5 12 11 17 Final Capacity 20 | 5 5 15 15 15 20 Final Carried 20 | 5 5 7 12 12 20 Class Distribution -------------------- 81% | Mutant 18% | Skirmisher Dominant Class ---------------- Mutant | -10/Materials Mutant | -10/Mines Mutant | -10/Exiles Mutant | -9/Mines Mutant | -8/Materials Resources | -11 -10 -10 -10 -9 -8 ----------- Run | Yrd Mat Min Exi Min Mat Matter Collected 1385 | 286 195 125 . 73 706 Remotely 195 | 26 . . . . 169 Salvage Created 1054 | 86 245 207 . 76 440 Parts 69 | 3 24 19 . 1 22 Haulers Intercepted 3 | . 2 . . . 1 Recyclers Shooed 2 | . 1 . . . 1 Parts Field Recycled . | . . . . . . Retrieved Matter . | . . . . . . Parts Self-Destructed . | . . . . . . Prevented . | . . . . . . Kills | -11 -10 -10 -10 -9 -8 ------- Run | Yrd Mat Min Exi Min Mat Combat Hostiles Destroyed 27 | . 7 8 . 2 10 Guns 19 | . 7 8 . 1 3 Cannons 7 | . . . . . 7 AOE 1 | . . . . 1 . Classes Destroyed 7 | 2 3 . . . 2 Tunneler 2 | 1 . 1 . . . Hauler 3 | . 2 . . . 1 Recycler 1 | 1 . . . . . Swarmer 12 | . 6 6 . . . Grunt 10 | . 1 2 . 2 5 Duelist 1 | . . . . . 1 Sentry 4 | . . . . . 4 Best Kill Streak 6 | 1 3 6 . 2 2 Combat Bots Only 6 | . 3 6 . 2 2 Max Kills in Single Turn 1 | 1 1 1 . 1 1 Gunslinging . | . . . . . . Exploded 1 | . . . . 1 . Melee . | . . . . . . Uniques/NPCs Destroyed . | . . . . . . Combat | -11 -10 -10 -10 -9 -8 -------- Run | Yrd Mat Min Exi Min Mat Hostile Shots Fired 160 | . 47 30 . 5 78 Missed 42 | . 12 2 . 3 25 Damage Taken 1570 | . 283 357 . 106 824 Core 211 | . 65 34 . . 112 Absorbed by Shields . | . . . . . . Redirected to Shielding 61 | . . . . . 61 Core Remaining (%) 80 | 100 . . . 60 . Volleys Fired 126 | 9 28 20 . 3 66 Largest 2 | 2 2 2 . 2 2 Hottest 67 | 40 40 40 . 50 67 Shots Fired 216 | 18 55 40 . 6 97 Gun 149 | 18 55 40 . 3 33 Cannon 64 | . . . . . 64 Launcher 3 | . . . . 3 . Special . | . . . . . . Kinetic 211 | 18 55 40 . 3 95 Thermal 2 | . . . . . 2 Explosive 3 | . . . . 3 . Electromagnetic . | . . . . . . Robot Hit Streak 9 | 7 8 5 . 6 9 Robot Miss Streak 3 | 1 2 3 . . 2 Penetration Max . | . . . . . . Secondary Targets 1 | . . 1 . . . Max Gunslinging Chain 1 | . . 1 . . . Shots Hit Robots 119 | 14 32 20 . 5 48 Core Hits 51 | 4 11 11 . 5 20 Critical Kills 1 | . . 1 . . . Critical Parts Destroyed . | . . . . . . Critical Strikes 4 | . . 1 . . 3 Destroy 1 | . . 1 . . . Blast 3 | . . . . . 3 Melee Attacks 10 | . . . . . 10 Impact . | . . . . . . Slashing 10 | . . . . . 10 Piercing . | . . . . . . Sneak Attacks . | . . . . . . Combat Hostiles . | . . . . . . Follow-up Attacks . | . . . . . . Damage Inflicted 1894 | 145 394 251 . 190 914 Guns 1147 | 145 394 247 . 38 323 Cannons 591 | . . . . . 591 Explosions 152 | . . . . 152 . Melee . | . . . . . . Ramming 4 | . . 4 . . . Kinetic 1738 | 145 394 247 . 38 914 Thermal . | . . . . . . Explosive 152 | . . . . 152 . Electromagnetic . | . . . . . . Impact . | . . . . . . Slashing . | . . . . . . Piercing . | . . . . . . Highest Corruption . | . . . . . . Average Corruption . | . . . . . . Corruption Purged . | . . . . . . Corruption Blocked . | . . . . . . Overload Shots . | . . . . . . Overflow Damage 7 | . . . . . 7 Projectiles 7 | . . . . . 7 Explosions . | . . . . . . Melee . | . . . . . . Knockbacks 6 | . . . . . 6 Impact . | . . . . . . Kinetic 6 | . . . . . 6 Secondary . | . . . . . . Self-Inflicted Damage 83 | . . . . 83 . Shots 3 | . . . . 3 . Rammed . | . . . . . . Targets Rammed 1 | . . 1 . . . Kicked . | . . . . . . Crushed 1 | . . 1 . . . Highest Temperature 90 | . . 2 . 13 90 Average Temperature 27 | . . 2 . 5 31 Received Heat Transfer 516 | . 6 60 . 18 432 Siege Activations . | . . . . . . Robots Corrupted . | . . . . . . Combat Hostiles . | . . . . . . Parts Fried . | . . . . . . Impact Corruptions . | . . . . . . Robots Melted . | . . . . . . Combat Hostiles . | . . . . . . Parts Melted . | . . . . . . Heat Transferred . | . . . . . . Parts Sabotaged . | . . . . . . Parts Stolen . | . . . . . . Parts Stripped . | . . . . . . Power Chain Reactions . | . . . . . . Alert | -11 -10 -10 -10 -9 -8 ------- Run | Yrd Mat Min Exi Min Mat Peak Influence 282 | 10 184 195 . 68 282 Initial 26 | . 6 . . . 26 Average 73 | 7 59 47 . 64 101 Maximum Alert Level 1 | . . . . . 1 Low Security (%) 91 | 100 100 100 . 100 82 Level 1 8 | . . . . . 17 Level 2 . | . . . . . . Level 3 . | . . . . . . Level 4 . | . . . . . . Level 5 . | . . . . . . High Security . | . . . . . . Max Security . | . . . . . . Squads Dispatched 1 | . . . . . 1 Investigation . | . . . . . . Extermination . | . . . . . . Reinforcement 1 | . . . . . 1 Assault . | . . . . . . Garrison . | . . . . . . Intercept . | . . . . . . Searches Triggered . | . . . . . . Construction Impeded . | . . . . . . Haulers Reinforced . | . . . . . . Active Scanning Responses . | . . . . . . Cargo Convoy Interrupts . | . . . . . . Stealth | -11 -10 -10 -10 -9 -8 --------- Run | Yrd Mat Min Exi Min Mat Distress Signals 3 | . . . . . 3 Communications Jammed . | . . . . . . Distress Signals . | . . . . . . Times Spotted 45 | . 8 13 . 2 22 Peak Tracking Total 10 | . 3 10 . 2 5 Tactical Retreats 6 | . . 1 . . 5 Traps | -11 -10 -10 -10 -9 -8 ------- Run | Yrd Mat Min Exi Min Mat Traps Triggered . | . . . . . . Indirectly . | . . . . . . Trap Hack Attempts . | . . . . . . Triggered . | . . . . . . Disarmed . | . . . . . . Reprogrammed . | . . . . . . Reused 3 | . . . . . 3 Traps Reconfigurated 6 | . . . . . 6 Traps Extracted . | . . . . . . Installed . | . . . . . . Triggered 3 | . . . . . 3 Machines | -11 -10 -10 -10 -9 -8 ---------- Run | Yrd Mat Min Exi Min Mat Machines Disabled 1 | . . . . . 1 Max in Single Turn 1 | . . . . . 1 Machines Repaired . | . . . . . . Machines Dismantled . | . . . . . . Machines Sabotaged . | . . . . . . Overloaded Fab Kills . | . . . . . . Hacking | -11 -10 -10 -10 -9 -8 --------- Run | Yrd Mat Min Exi Min Mat Machines Accessed 12 | . 3 . 5 . 4 Terminals 6 | . 3 . . . 3 Fabricators . | . . . . . . Repair Stations . | . . . . . . Recycling Units . | . . . . . . Scanalyzers 1 | . . . . . 1 Garrison Access . | . . . . . . Total Hacks 61 | . 8 . 31 . 22 Successful 47 | . 3 . 31 . 13 Failed 13 | . 5 . . . 8 Catastrophic 1 | . . . . . 1 Database Lockouts 1 | . . . . . 1 Manual 25 | . 8 . 1 . 16 Terminals 25 | . 8 . . . 17 Fabricators . | . . . . . . Repair Stations . | . . . . . . Recycling Units . | . . . . . . Scanalyzers 5 | . . . . . 5 Garrison Access . | . . . . . . Terminal Hacks 38 | . 1 . 31 . 6 Record 30 | . . . 30 . . Part Schematic 1 | . . . . . 1 Terminal Index 2 | . 1 . . . 1 Alert Level 1 | . . . . . 1 Locate Traps 1 | . . . . . 1 Surveillance Status 1 | . . . . . 1 Hauler Manifests 1 | . . . . . 1 Derelict Proto ID Bank 1 | . . . 1 . . Fabricator Hacks . | . . . . . . Repair Station Hacks . | . . . . . . Recycling Unit Hacks . | . . . . . . Scanalyzer 3 | . . . . . 3 Insert Component 2 | . . . . . 2 Analyze 1 | . . . . . 1 Garrison Access Hacks . | . . . . . . Unauthorized Hacks 6 | . 2 . . . 4 Terminals 6 | . 2 . . . 4 Botnet 5 | . 2 . . . 3 Operators 1 | . . . . . 1 Fabricators . | . . . . . . Repair Stations . | . . . . . . Recycling Units . | . . . . . . Scanalyzers . | . . . . . . Garrison Access . | . . . . . . Data Cores Recovered . | . . . . . . Used . | . . . . . . Hacking Detections 7 | . 3 . . . 4 Full Trace Events . | . . . . . . Feedback Events . | . . . . . . Feedback Blocked . | . . . . . . Robot Schematics Acquired . | . . . . . . Robots Built . | . . . . . . Authchips . | . . . . . . Time . | . . . . . . Total Robot Build Rating . | . . . . . . Part Schematics Acquired 2 | . . . . . 2 Parts Built . | . . . . . . Authchips . | . . . . . . Time . | . . . . . . Total Part Build Rating . | . . . . . . Parts Repaired . | . . . . . . Time . | . . . . . . Parts Recycled . | . . . . . . Recycled Matter . | . . . . . . Retrieved Matter . | . . . . . . Retrieved Components . | . . . . . . Parts Scanalyzed 2 | . . . . . 2 Part Schematics Acquired 1 | . . . . . 1 Parts Damaged . | . . . . . . Bothacking | -11 -10 -10 -10 -9 -8 ------------ Run | Yrd Mat Min Exi Min Mat Used RIF Installer . | . . . . . . Robots Hacked . | . . . . . . Non-combat . | . . . . . . Combat . | . . . . . . Robot Hacks Applied . | . . . . . . Relay Couplers Released . | . . . . . . Fabnet Peak Effective % . | . . . . . . Robots Rewired . | . . . . . . Allies Hacked . | . . . . . . Hacks Repelled . | . . . . . . Allies | -11 -10 -10 -10 -9 -8 -------- Run | Yrd Mat Min Exi Min Mat Total Allies 2 | . . . . 2 . Largest Group 2 | . . . . 2 2 Highest-Rated Group 47 | . . . . 47 47 Highest-Rated Ally 31 | . . . . 31 31 Total Orders . | . . . . . . Ally Attacks 7 | . . . . . 7 Total Damage 122 | . . . . . 122 Kills 1 | . . . . . 1 Allies Corrupted . | . . . . . . Allies Melted . | . . . . . . Intel | -11 -10 -10 -10 -9 -8 ------- Run | Yrd Mat Min Exi Min Mat Robot Analysis Total . | . . . . . . Derelict Logs Recovered 1 | . . 1 . . . Drone Launches . | . . . . . . Drone Recoveries . | . . . . . . Exploration | -11 -10 -10 -10 -9 -8 ------------- Run | Yrd Mat Min Exi Min Mat Turns Passed 4688 | 322 901 540 1108 75 1742 Spaces Moved 2507 | 173 485 286 686 50 827 Core . | . . . . . . Treads 2411 | 172 485 286 686 . 782 Legs 1 | 1 . . . . . Wheels 95 | . . . . 50 45 Hover . | . . . . . . Flight . | . . . . . . Fastest Speed 120 | 120 160 160 160 130 130 Average Speed 154 | 159 160 160 160 130 144 Slowest Speed 160 | 160 160 160 160 130 152 Overloaded Moves . | . . . . . . Propulsion Burnouts . | . . . . . . Robots Hopped . | . . . . . . Cave-ins Triggered . | . . . . . . Exploration Rate (%) 42 | 12 54 35 94 27 33 Regions Visited 5 Branch Regions 3 Pre-discovered Areas 1 | . . . 1 . . Known Exits Taken . | . . . . . . Unknown Exits Taken 5 | 1 1 1 1 1 . Scrap Searched . | . . . . . . Spaces Dug 25 | . . . . . 25 Terrain Destroyed 57 | . . . . 27 30 Melee 10 | . . . . . 10 Projectile 20 | . . . . . 20 AOE 27 | . . . . 27 . Terrain Rammed . | . . . . . . Walls Destroyed . | . . . . . . Machines Disabled . | . . . . . . Actions | -11 -10 -10 -10 -9 -8 --------- Run | Yrd Mat Min Exi Min Mat Total 3105 | 202 560 329 697 54 1263 Wait 336 | 12 32 15 . . 277 Move 2502 | 172 484 285 685 49 827 Hop . | . . . . . . Pick Up 45 | . 5 5 8 1 26 Fast Attach 7 | 3 . . . . 4 Attach 12 | . . 1 2 1 8 Detach 6 | 1 . . . . 5 Swap 28 | 2 3 . 1 . 22 Drop 32 | 3 8 2 1 . 18 Fire 126 | 9 28 20 . 3 66 Melee 10 | . . . . . 10 Ram . | . . . . . . Kick . | . . . . . . Crush 1 | . . 1 . . . Escape Stasis . | . . . . . . Rewire . | . . . . . . Trap . | . . . . . . Miscellaneous . | . . . . . . Route ------- -11/Scrapyard -10/Materials -10/Mines (discovered 2 exits: [*Mat] / *Exi) -10/Exiles (discovered 2 exits: [*Min x2]) -9/Mines -8/Materials History --------- Turn | Location | Event 11 | -11/Scrapyard | Discovered new exit (range 2) 323 | -11/Scrapyard | Entered Materials 324 | -10/Materials | Build established: Mutant 1174 | -10/Materials | Discovered new exit (range 6) 1224 | -10/Materials | Entered Mines 1289 | -10/Mines | Discovered new exit (range 7) 1309 | -10/Mines | Learned 2 Materials zone layouts 1469 | -10/Mines | Deemed a non-threat by the Exiles lab entrance 1469 | -10/Mines | Discovered new exit (range 5) 1726 | -10/Mines | Assembled infested the area 1764 | -10/Mines | Entered Exiles 1788 | -10/Exiles | Discovered new exit (range 15) 1838 | -10/Exiles | Met 8R-AWN 1864 | -10/Exiles | Met EX-HEX 1955 | -10/Exiles | Met EX-DEC 1978 | -10/Exiles | Visited The Gauntlet 2196 | -10/Exiles | Learned location of Zion (-6) 2325 | -10/Exiles | Discovered new exit (range 14) 2445 | -10/Exiles | Met EX-BIN 2594 | -10/Exiles | Aligned with FarCom system 2595 | -10/Exiles | Given EX-Vault access code 2632 | -10/Exiles | Opened EX-Vault 2644 | -10/Exiles | Found Trap Reconfigurator 2682 | -10/Exiles | Warned to stay clear of 0b10 Research branches 2872 | -10/Exiles | Left Exiles lab with Trap Reconfigurator 2872 | -10/Exiles | Entered Mines 2937 | -9/Mines | Discovered new exit (range 9) 2947 | -9/Mines | Entered Materials 2947 | -8/Materials | Accompanied by 2 allies 2947 | -8/Materials | Evolved 4 slots: Propulsion x1, Utility x3 2952 | -8/Materials | Led the pair of lost Derelicts to an unsafe place 3300 | -8/Materials | Build established: Skirmisher 3958 | -8/Materials | Central database locked down 4176 | -8/Materials | Build established: Mutant 4689 | -8/Materials | Self-destructed Last Messages --------------- 04497_ K-01 Serf collects debris. 04499_ Acquired 5 matter. 04501_ K-01 Serf collects debris. 04512_ Alarm Trap disarmed. 04519_ ALERT: Suspicious intruders detected, dispatching Specialist reinforcements to area. 04530_ Slug penetrates Wall. 04530_ W-25 Informer sends out distress signal. 04533_ Penetrated by Slug. 04575_ Slug penetrates Wall. 04575_ Critical hit (Burn: +37). 04583_ The unstable cave ceiling collapses. 04588_ Acquired 30 matter. 04589_ K-01 Serf cleans the Processing Tank. 04658_ K-01 Serf cleans the Electrolysis Chamber. 04661_ K-01 Serf cleans the Electrolysis Chamber. 04676_ G-47 Trooper misfires. 04676_ Processing Tank disabled. Map ----- +----------------------------------------------------+ | ???????#" """ # # """ #?????????? | | ???????## # # """ #?????????? | | ??#############/## # #?????????? | | ?## !!/ + # "" #?????????? | | ?## !! [ # # ! T" #?????????? | | ?##%%!! * # """ # "" #?????????? | | ?# [ # "R ## [ #?????????? | | ?## " "" + """ ######"####?????????? | | ??# ""S"" # ######"#????????????? | | ??# """" # # """ #????????????? | | ??# ! # # "T" #????????????? | | ??########### /# #????????????? | | ?############ """ # [ #????????????? | | ?# =%% % %## """ + #????????????? | | ?#!"= =## """ # #????????????? | | ?#""" % # """ ########????????????? | | ?#""""" + "" #??????????????????? | | ?#""""" # #??????????????????? | | ?# """ # #??????????????????? | | ?# # #?###??????????????? | | ?# ####### #### ######?????????? | | ?########+##?????# g# #?????????? | | ?# # ######## %b ! #?????????? | | ?#""" / ^# % #?????????? | | ?#""" # ^# #?????????? | | ?#"S | ###+########## @ #?????????? | | ?#""" # !#?????# """ """ #?????????? | | ?# "" # #?????# """ """ #?????????? | | ?# # """ #?????# """ """ #?????????? | | ?# # """ #?????#####;#;######??????? | | ?# % # """ !#????#############"#??????? | | ?#% """ # #????# ! ! # #??????? | | ?# """ ########????# # """ #??????? | | ?/ """ #???????????# ! # """ #??????? | | ## #???????????# # """ #??????? | | ?###### #????????#### # #??????? | | ???????##???????##! # # #??????? | | ????????????????#! ####/######+####?????? | | ????????????????#! #?????? | | ????????????????#! #?????? | | ????????????????#! #?????? | | ????????????????##! ###### #####?????? | | ?????????????????#### #????# #?????????? | | ???????????????????## #????# #?????????? | | ??????############### #????# #?????????? | | ??????# # ###### #?????????? | | ??????# """ """ """ # # # #?????????? | | ??????# "" """ """!# # # #?????????? | | ??????# " " """ """ # # # ########### | | ??????# != # # # ## [ # | +----------------------------------------------------+ Best States ------------- Heat Dissipation 31 Energy Generation 14 Energy Capacity 450 Matter Stores 719 Matter Capacity 750 Sight Range 18 Terrain Scan Range 16 Terrain Scan Density 10 Armor Coverage 150 Utility Shielding 66 Evasion (%) 40 Recoil Reduction 3 Defensive Hacking 10 Item Schematics ----------------- Trap Scanner | -8/Materials | Scanalyzed Utility Shielding | -8/Materials | Hacked Robot Schematics ------------------ None Fabricated ------------ Nothing Alien Tech Used ----------------- None Achievements -------------- None Challenges ------------ None Game ------ Seed BlastDrainedPit Manual? 0 Play Time 01:56:21 Cumulative 213.3 hours Start 2024.03.03 @ 12:49:58 End 2024.03.03 @ 17:05:34 Sessions 5 Manual Loads 0 Difficulty Rogue Special Mode None Game No. 79 Rogue 76 Adventurer 0 Explorer 3 Win Type - Total 3 Types 2/0/0/1/0/0/0/0/0 Lore% 43 Gallery% 65 Achievement% 49 Wizard Run 0 Options --------- Layout 2 ASCII 0 Keyboard 1 Movement Numpad Keybinds 0 Fullscreen 2 Font 24/Smallcaps Map View 50x44 Zoom Use 0% Tactical HUD 1 Map Filters NONE Filters NONE Steam 1 RUN: a17e3c7e-0809-4acd-b7b1-43181f7d91f8